bitfinex-derivatives/quotes_SOLF0:USTF0_20250425
["timestamp","ask_amount","ask_price","bid_price","bid_amount"]
[1745610417465,6.6129,151.12,151.09,6.6135]
[1745610417965,11.26548675,151.15,151.12,6.6124]
[1745610418170,35.02548675,151.2,151.14,11.26548675]
[1745610418363,35.02548675,151.2,151.16,11.26548675]
[1745610418667,6.6102,151.18,151.16,11.26548675]
[1745610419267,35.02548675,151.2,151.16,11.26548675]
[1745610419769,6.6106,151.17,151.15,11.26548675]
[1745610420468,6.6107,151.16,151.15,11.26548675]
[1745610420770,11.26548675,151.16,151.12,11.26548675]
[1745610420960,11.26548675,151.14,151.1,17.87858675]
[1745610421466,6.6127,151.12,151.1,11.26548675]
[1745610421668,11.26548675,151.14,151.08,35.02548675]
[1745610422167,6.6125,151.12,151.09,6.6135]
[1745610422869,11.26548675,151.14,151.08,35.02548675]
[1745610423069,11.26548675,151.14,151.1,11.26548675]
[1745610423571,6.6124,151.13,151.1,17.87868675]
[1745610424271,11.26548675,151.14,151.1,17.87868675]
[1745610424470,11.26548675,151.14,151.1,11.26548675]
[1745610424669,11.26548675,151.14,151.08,35.02548675]
[1745610424870,6.6125,151.12,151.08,35.02548675]
[1745610425071,6.6125,151.12,151.09,6.6135]
[1745610425268,11.26548675,151.14,151.09,6.6135]
[1745610425568,6.613,151.11,151.08,41.63938675]
[1745610425766,11.26548675,151.12,151.08,6.6139]
[1745610425969,35.02548675,151.12,151.08,6.6139]
[1745610426169,35.02548675,151.12,151.07,6.6145]
[1745610426976,35.02548675,151.12,151.08,6.6142]
[1745610427274,6.6131,151.11,151.08,6.6142]
[1745610427474,35.02548675,151.12,151.06,11.26548675]
[1745610427674,35.02548675,151.12,151.09,6.6136]
[1745610428275,41.63828675,151.12,151.08,11.26548675]
[1745610428674,41.63828675,151.12,151.09,6.6136]
[1745610428875,6.613,151.11,151.09,6.6136]
[1745610429072,6.613,151.11,151.08,11.26548675]
[1745610429373,6.613,151.11,151.08,17.87928675]
[1745610429874,6.613,151.11,151.09,6.6137]
[1745610430369,6.613,151.11,151.08,17.87948675]
[1745610432575,6.613,151.11,151.09,6.6137]
[1745610432974,11.26548675,151.13,151.08,11.26548675]
[1745610433775,6.6118,151.14,151.1,11.26548675]
[1745610434975,19.87288675,151.15,151.1,11.26548675]
[1745610435176,35.02548675,151.17,151.12,11.26548675]
[1745610435379,11.26548675,151.19,151.14,11.26548675]
[1745610435577,487.54548675,151.2,151.16,6.6106]
[1745610435873,11.26548675,151.2,151.16,11.26548675]
[1745610436071,6.6098,151.19,151.16,17.87588675]
[1745610436478,11.26548675,151.2,151.16,11.26548675]
[1745610436777,6.6095,151.19,151.16,11.26548675]
[1745610437278,6.6095,151.19,151.16,17.87588675]
[1745610438478,6.6101,151.18,151.16,11.26548675]
[1745610438780,11.26548675,151.2,151.16,11.26548675]
[1745610438979,6.6096,151.19,151.16,17.87598675]
[1745610440678,6.6099,151.18,151.16,11.26548675]
[1745610440878,6.6099,151.18,151.15,6.611]
[1745610441675,11.26548675,151.18,151.14,11.26548675]
[1745610442178,6.6105,151.17,151.14,17.87688675]
[1745610442477,11.26548675,151.18,151.14,17.87688675]
[1745610442877,6.6106,151.17,151.14,17.87688675]
[1745610443176,11.26548675,151.18,151.14,17.87688675]
[1745610443570,6.6108,151.16,151.14,11.26548675]
[1745610444077,6.6107,151.17,151.14,17.87708675]
[1745610444278,11.26548675,151.18,151.14,17.87708675]
[1745610444574,6.6103,151.17,151.14,17.87708675]
[1745610444880,11.26548675,151.18,151.14,17.87708675]
[1745610445178,6.6103,151.17,151.14,17.87708675]
[1745610445778,6.6107,151.16,151.14,17.87708675]
[1745610446077,11.26548675,151.18,151.14,17.87708675]
[1745610446475,6.6105,151.17,151.14,17.87708675]
[1745610446983,6.6105,151.17,151.15,6.6111]
[1745610447182,6.61,151.18,151.15,6.6111]
[1745610447373,11.26548675,151.2,151.15,6.6111]
[1745610448373,6.6102,151.18,151.15,6.6111]
[1745610448580,11.26548675,151.2,151.15,6.6111]
[1745610448780,11.26548675,151.2,151.14,17.87688675]
[1745610449081,6.6101,151.18,151.14,11.26548675]
[1745610449581,6.6101,151.18,151.15,6.611]
[1745610450777,6.6104,151.17,151.15,6.611]
[1745610452784,6.61,151.18,151.15,6.611]
[1745610454085,6.6103,151.17,151.15,6.611]
[1745610454783,23.76,151.21,151.16,11.26548675]
[1745610454983,1.9246,151.22,151.18,11.26548675]
[1745610455184,11.26548675,151.23,151.2,11.26548675]
[1745610455488,23.76,151.24,151.2,11.26548675]
[1745610455789,30.3674,151.24,151.21,6.6081]
[1745610455985,2.0205,151.26,151.22,11.26548675]
[1745610456383,11.26548675,151.25,151.18,3.9206]
[1745610456582,11.26548675,151.25,151.2,11.26548675]
[1745610457186,11.26548675,151.23,151.2,11.26548675]
[1745610457588,6.6084,151.22,151.2,11.26548675]
[1745610457989,11.26548675,151.23,151.2,11.26548675]
[1745610458491,17.87348675,151.23,151.2,17.87438675]
[1745610458791,11.26548675,151.23,151.2,11.26548675]
[1745610458990,17.87328675,151.23,151.2,17.87418675]
[1745610459892,6.6073,151.24,151.21,6.6083]
[1745610460192,11.26548675,151.25,151.2,11.26548675]
[1745610460491,6.6077,151.23,151.2,17.87418675]
[1745610460992,6.6077,151.23,151.21,6.6085]
[1745610461991,11.26548675,151.25,151.22,6.608]
[1745610462387,6.6073,151.24,151.22,6.608]
[1745610463787,6.607,151.25,151.22,6.608]
[1745610464092,11.26548675,151.27,151.23,6.6073]
[1745610464488,6.6067,151.26,151.23,6.6073]
[1745610464682,6.6067,151.26,151.24,6.6071]
[1745610464888,6.6067,151.26,151.22,11.26548675]
[1745610465087,6.6067,151.26,151.23,6.6074]
[1745610465589,17.87158675,151.27,151.24,6.6071]
[1745610465989,6.6064,151.26,151.22,11.26548675]
[1745610466289,6.6064,151.26,151.23,6.6074]
[1745610467095,6.6069,151.25,151.22,17.87338675]
[1745610467395,11.26548675,151.27,151.22,11.26548675]
[1745610467691,6.6074,151.24,151.22,11.26548675]
[1745610469896,6.6074,151.24,151.21,30.3482]
[1745610469897,11.26548675,151.25,151.2,11.26548675]
[1745610470099,11.26548675,151.23,151.18,13.25278675]
[1745610470299,6.6089,151.21,151.18,13.25278675]
[1745610470496,23.74,151.24,151.18,13.25278675]
[1745610470793,11.26548675,151.23,151.18,13.25278675]
[1745610470995,6.6087,151.21,151.19,6.6092]
[1745610471199,6.6087,151.21,151.18,13.25278675]
[1745610471601,6.6087,151.21,151.18,19.86228675]
[1745610472102,6.6087,151.21,151.19,6.6093]
[1745610472401,6.6089,151.2,151.18,13.25278675]
[1745610472600,6.6089,151.2,151.18,11.26548675]
[1745610472801,11.26548675,151.23,151.16,23.74]
[1745610473101,6.6097,151.19,151.16,35.00548675]
[1745610473501,6.6097,151.19,151.16,41.61588675]
[1745610473799,6.6097,151.19,151.16,35.00548675]
[1745610473994,11.26548675,151.21,151.18,6.6098]
[1745610474190,6.6091,151.2,151.18,6.6098]
[1745610474597,11.26548675,151.21,151.18,6.6098]
[1745610474901,17.87428675,151.21,151.19,6.6093]
[1745610475104,17.87428675,151.21,151.16,35.00548675]
[1745610475299,17.87428675,151.21,151.18,6.6096]
[1745610476603,6.609,151.2,151.18,6.6096]
[1745610476901,11.26548675,151.21,151.19,6.6094]
[1745610477599,17.87418675,151.21,151.19,6.6094]
[1745610479305,6.6082,151.22,151.2,6.6089]
[1745610480509,6.6082,151.22,151.19,6.6092]
[1745610480807,6.6086,151.21,151.18,11.26548675]
[1745610481006,6.6086,151.21,151.19,6.6091]
[1745610481307,6.6086,151.21,151.18,11.26548675]
[1745610481506,6.609,151.2,151.18,11.26548675]
[1745610481706,11.26548675,151.24,151.18,11.26548675]
[1745610482107,6.6088,151.21,151.18,11.26548675]
[1745610482307,6.6088,151.21,151.19,6.6093]
[1745610482509,6.6083,151.22,151.19,6.6093]
[1745610482709,6.6083,151.22,151.19,6.6091]
[1745610483007,11.26548675,151.24,151.18,11.26548675]
[1745610483211,11.26548675,151.24,151.19,6.6093]
[1745610483811,6.6085,151.22,151.19,6.6093]
[1745610485012,6.6085,151.21,151.19,6.6093]
[1745610485212,11.26548675,151.22,151.18,11.26548675]
[1745610485509,11.26548675,151.2,151.15,11.26548675]
[1745610485710,11.26548675,151.18,151.14,17.87668675]
[1745610486111,6.6105,151.17,151.14,17.87668675]
[1745610486412,6.6105,151.17,151.15,6.6111]
[1745610486605,6.6105,151.17,151.14,11.26548675]
[1745610487109,17.87558675,151.18,151.14,11.26548675]
[1745610487612,17.87558675,151.18,151.15,6.6107]
[1745610487812,17.87558675,151.18,151.14,11.26548675]
[1745610488214,17.87558675,151.18,151.15,6.6109]
[1745610488513,17.87558675,151.18,151.14,11.26548675]
[1745610488706,6.6101,151.18,151.14,11.26548675]
[1745610488913,6.6101,151.18,151.15,6.6109]
[1745610489114,6.6092,151.2,151.16,11.26548675]
[1745610489315,36.94558675,151.21,151.16,17.87598675]
[1745610489713,6.6096,151.19,151.16,11.26548675]
[1745610489914,36.94558675,151.21,151.16,11.26548675]
[1745610490317,36.94558675,151.21,151.17,6.61]
[1745610491418,6.6094,151.19,151.17,6.61]
[1745610492920,6.6102,151.18,151.15,6.6109]
[1745610493110,36.94558675,151.21,151.15,6.6109]
[1745610493111,11.26548675,151.19,151.15,11.26548675]
[1745610493716,6.6099,151.18,151.15,17.87628675]
[1745610494018,11.26548675,151.19,151.15,17.87628675]
[1745610494318,6.6099,151.18,151.15,17.87628675]
[1745610494617,6.6099,151.18,151.16,6.6107]
[1745610495019,6.6099,151.18,151.15,11.26548675]
[1745610495215,6.6099,151.18,151.15,17.87638675]
[1745610495420,6.6099,151.18,151.15,11.26548675]
[1745610495922,6.6099,151.18,151.16,6.6105]
[1745610498720,6.6104,151.17,151.15,17.87638675]
[1745610500027,6.61,151.18,151.15,17.87638675]
[1745610500226,11.26548675,151.2,151.15,17.87638675]
[1745610500526,6.6102,151.18,151.15,17.87638675]
[1745610500926,6.6102,151.18,151.16,6.6107]
[1745610501829,25.6801,151.21,151.17,11.26548675]
[1745610502327,6.6098,151.18,151.17,11.26548675]
[1745610502527,25.6801,151.21,151.17,11.26548675]
[1745610503027,6.6097,151.19,151.17,11.26548675]
[1745610503227,11.26548675,151.2,151.15,11.26548675]
[1745610503530,6.6102,151.18,151.15,11.26548675]
[1745610503730,11.26548675,151.2,151.15,11.26548675]
[1745610504332,11.26548675,151.2,151.16,6.6104]
[1745610504629,11.26548675,151.2,151.15,11.26548675]
[1745610504832,6.6105,151.17,151.15,17.87648675]
[1745610505333,6.6099,151.18,151.15,17.87648675]
[1745610505934,6.6097,151.19,151.16,6.6106]
[1745610506233,11.26548675,151.2,151.16,6.6106]
[1745610506733,6.6096,151.19,151.16,6.6106]
[1745610506934,6.6096,151.19,151.17,6.6101]
[1745610507334,6.6096,151.19,151.16,6.6105]
[1745610507735,6.6098,151.18,151.16,6.6105]
[1745610510136,11.26548675,151.2,151.15,11.26548675]
[1745610510137,6.6096,151.19,151.17,6.6103]
[1745610510936,11.26548675,151.2,151.13,23.74]
[1745610511139,11.26548675,151.16,151.11,11.26548675]
[1745610511530,11.26548675,151.14,151.09,35.00548675]
[1745610511932,6.6125,151.12,151.09,35.00548675]
[1745610512845,6.6122,151.13,151.09,23.74]
[1745610513334,6.6122,151.13,151.1,6.6133]
[1745610514043,11.26548675,151.14,151.09,30.3536]
[1745610514543,11.26548675,151.14,151.09,23.74]
[1745610514741,11.26548675,151.14,151.08,6.614]
[1745610514939,11.26548675,151.12,151.08,6.614]
[1745610515139,6.6131,151.11,151.08,6.614]
[1745610515340,6.6131,151.11,151.09,6.6137]
[1745610515536,11.26548675,151.12,151.09,6.6137]
[1745610515742,17.87798675,151.12,151.09,6.6137]
[1745610520145,30.3522,151.13,151.1,6.6133]
[1745610520447,23.74,151.13,151.09,11.26548675]
[1745610520643,11.26548675,151.14,151.09,11.26548675]
[1745610521244,6.6122,151.13,151.1,6.6131]
[1745610521446,6.6122,151.13,151.09,11.26548675]
[1745610521847,6.6122,151.13,151.1,6.6131]
[1745610524952,11.26548675,151.14,151.09,17.87898675]
[1745610524953,6.6125,151.12,151.09,17.87898675]
[1745610525152,11.26548675,151.14,151.09,11.26548675]
[1745610525649,6.6125,151.12,151.09,11.26548675]
[1745610525856,11.26548675,151.14,151.09,11.26548675]
[1745610526154,6.6126,151.12,151.09,17.87898675]
[1745610527255,6.6126,151.12,151.1,6.6133]
[1745610530051,6.6126,151.12,151.09,17.87908675]
[1745610531754,6.6122,151.13,151.1,6.6132]
[1745610531954,11.26548675,151.14,151.1,6.6132]
[1745610532151,11.26548675,151.14,151.09,11.26548675]
[1745610532352,6.6128,151.12,151.09,17.87888675]
[1745610533257,6.613,151.11,151.09,17.87888675]
[1745610533458,11.26548675,151.14,151.1,6.6133]
[1745610534260,6.6127,151.12,151.09,17.87898675]
[1745610534459,11.26548675,151.14,151.09,17.87898675]
[1745610534859,2.0589,151.15,151.11,11.26548675]
[1745610535057,23.74,151.16,151.11,11.26548675]
[1745610535454,23.74,151.16,151.12,6.6122]
[1745610535650,23.74,151.16,151.11,11.26548675]
[1745610535958,6.6118,151.14,151.11,17.87798675]
[1745610536254,23.74,151.16,151.11,11.26548675]
[1745610536458,11.26548675,151.15,151.11,11.26548675]
[1745610536960,6.612,151.13,151.11,17.87838675]
[1745610538259,6.612,151.13,151.11,11.26548675]
[1745610538755,11.26548675,151.15,151.11,11.26548675]
[1745610538959,6.6121,151.12,151.09,11.26548675]
[1745610539260,6.6121,151.12,151.06,23.74]
[1745610539462,6.6121,151.12,151.09,11.26548675]
[1745610540259,6.6121,151.12,151.09,17.87838675]
[1745610540461,6.6115,151.13,151.09,11.26548675]
[1745610540761,11.26548675,151.15,151.09,17.87838675]
[1745610541055,6.612,151.12,151.09,17.87838675]
[1745610541257,11.26548675,151.15,151.09,11.26548675]
[1745610541458,6.6126,151.11,151.09,11.26548675]
[1745610541658,13.33848675,151.15,151.09,11.26548675]
[1745610541853,13.33848675,151.15,151.09,17.87828675]
[1745610542158,6.6116,151.13,151.09,11.26548675]
[1745610542459,6.6116,151.13,151.1,6.6124]
[1745610542760,13.33848675,151.15,151.09,11.26548675]
[1745610543263,11.26548675,151.13,151.09,11.26548675]
[1745610543657,11.26548675,151.11,151.06,35.00548675]
[1745610543853,11.26548675,151.11,151.06,11.26548675]
[1745610544361,6.6135,151.09,151.06,17.87968675]
[1745610545363,6.6135,151.09,151.07,6.614]
[1745610545562,23.74,151.12,151.08,11.26548675]
[1745610545960,23.74,151.12,151.09,6.6129]
[1745610546363,30.3522,151.12,151.09,6.6129]
[1745610547064,6.6125,151.11,151.08,17.87878675]
[1745610549166,6.6128,151.1,151.08,6.6133]
[1745610549366,6.6128,151.1,151.08,11.26548675]
[1745610549566,23.74,151.12,151.08,11.26548675]
[1745610550270,6.6131,151.09,151.08,11.26548675]
[1745610550468,23.74,151.12,151.08,11.26548675]
[1745610550969,6.6123,151.11,151.08,17.87888675]
[1745610551770,6.6127,151.1,151.08,17.87888675]
[1745610552771,6.6131,151.09,151.08,11.26548675]
[1745610553869,23.74,151.12,151.08,11.26548675]
[1745610554270,11.26548675,151.13,151.08,11.26548675]
[1745610554771,6.6122,151.11,151.09,6.6128]
[1745610555271,6.6122,151.11,151.08,17.87878675]
[1745610555470,11.26548675,151.13,151.08,11.26548675]
[1745610555769,11.26548675,151.11,151.07,11.26548675]
[1745610555967,6.6138,151.08,151.04,11.26548675]
[1745610556161,11.26548675,151.09,151.04,11.26548675]
[1745610556360,11.26548675,151.09,151.05,6.6146]
[1745610556561,6.6138,151.08,151.05,6.6146]
[1745610557272,6.6138,151.08,151.06,6.6143]
[1745610558570,6.6133,151.09,151.07,6.6139]
[1745610559172,23.74,151.11,151.08,11.26548675]
[1745610559375,11.26548675,151.13,151.08,11.26548675]
[1745610559676,6.6125,151.11,151.08,17.87878675]
[1745610559873,11.26548675,151.13,151.08,11.26548675]
[1745610560172,6.6119,151.12,151.1,6.6125]
[1745610560376,11.26548675,151.13,151.1,6.6125]
[1745610560570,39.10428675,151.15,151.1,17.87798675]
[1745610560769,6.6116,151.13,151.1,17.87798675]
[1745610561173,39.10428675,151.15,151.1,17.87798675]
[1745610561373,39.10428675,151.15,151.1,11.26548675]
[1745610561873,6.613,151.1,151.08,11.26548675]
[1745610562774,6.6121,151.12,151.09,6.6131]
[1745610562969,6.6121,151.12,151.1,11.26548675]
[1745610563271,6.6116,151.13,151.1,17.87788675]
[1745610563471,39.10428675,151.15,151.1,17.87788675]
[1745610563874,6.6118,151.12,151.1,17.87788675]
[1745610564174,6.6118,151.12,151.1,11.26548675]
[1745610565274,6.6118,151.12,151.1,17.87808675]
[1745610565474,25.813,151.15,151.1,11.26548675]
[1745610565774,23.74,151.15,151.12,17.87698675]
[1745610565977,6.611,151.14,151.12,17.87698675]
[1745610569375,6.6113,151.13,151.12,11.26548675]
[1745610569575,11.26548675,151.14,151.08,13.29948675]
[1745610569765,11.26548675,151.14,151.08,11.26548675]
[1745610570172,11.26548675,151.14,151.08,17.87888675]
[1745610570973,6.6124,151.11,151.08,17.87888675]
[1745610571377,11.26548675,151.14,151.08,17.87888675]
[1745610571678,6.6126,151.11,151.08,17.87888675]
[1745610572079,6.6128,151.1,151.08,17.87888675]
[1745610577681,6.6128,151.1,151.08,11.26548675]
[1745610578081,6.6131,151.09,151.08,11.26548675]
[1745610578282,6.6131,151.09,151.07,23.74]
[1745610578582,6.6131,151.09,151.07,35.00548675]
[1745610579088,6.6131,151.09,151.07,41.61918675]
[1745610581188,6.6131,151.09,151.07,35.00548675]
[1745610581792,6.6131,151.09,151.07,41.61928675]
[1745610582293,6.6129,151.1,151.07,41.61928675]
[1745610583595,6.6129,151.1,151.08,6.6135]
[1745610585195,13.29888675,151.14,151.09,17.87838675]
[1745610586201,6.6122,151.12,151.09,17.87838675]
[1745610586502,13.29888675,151.14,151.09,17.87838675]
[1745610586902,6.6122,151.12,151.09,17.87838675]
[1745610587201,6.6122,151.12,151.1,6.6126]
[1745610588203,25.6807,151.15,151.11,11.26548675]
[1745610588805,8.5514,151.15,151.12,6.6115]
[1745610589301,35.00548675,151.19,151.15,6.6104]
[1745610589504,35.00548675,151.19,151.13,11.26548675]
[1745610589704,6.6099,151.17,151.14,6.6107]
[1745610590506,6.61,151.16,151.13,17.87658675]
[1745610592006,6.6097,151.17,151.14,6.6105]
[1745610592207,35.00548675,151.19,151.13,11.26548675]
[1745610592609,6.6103,151.16,151.13,17.87658675]
[1745610592910,35.00548675,151.19,151.13,17.87658675]
[1745610593109,6.6103,151.16,151.15,11.26548675]
[1745610597007,3.9645,151.2,151.15,11.26548675]
[1745610597312,2.0376,151.2,151.17,11.26548675]
[1745610598014,6.609,151.19,151.17,11.26548675]
[1745610598615,11.26548675,151.18,151.13,17.87668675]
[1745610598913,11.26548675,151.18,151.13,11.26548675]
[1745610599113,13.30308675,151.2,151.16,6.61]
[1745610599612,6.6095,151.18,151.15,17.87578675]
[1745610600209,13.2084,151.3,151.17,11.26548675]
[1745610600412,75.58619531,151.33,151.26,11.26548675]
[1745610600617,75.58619531,151.33,151.18,5.8862]
[1745610600618,11.26548675,151.29,151.18,5.8862]
[1745610600810,11.26548675,151.25,151.18,3.9607]
[1745610601007,3.9558,151.28,151.22,11.26548675]
[1745610601211,3.9558,151.28,151.18,27.6807]
[1745610601512,21.82638675,151.28,151.23,6.6067]
[1745610601709,15.22128675,151.28,151.23,6.6067]
[1745610602016,21.82628675,151.28,151.23,6.6067]
[1745610602214,15.22128675,151.28,151.24,6.6064]
[1745610602516,23.72,151.29,151.26,11.26548675]
[1745610602817,11.26548675,151.31,151.26,17.87088675]
[1745610603011,11.26548675,151.31,151.26,11.26548675]
[1745610603215,11.26548675,151.27,151.23,11.26548675]
[1745610603417,11.26548675,151.27,151.23,17.87218675]
[1745610603613,11.26548675,151.27,151.21,11.26548675]
[1745610603916,11.26548675,151.25,151.21,11.26548675]
[1745610604120,17.87158675,151.25,151.21,11.26548675]
[1745610604420,11.26548675,151.25,151.21,11.26548675]
[1745610604617,11.26548675,151.25,151.19,34.98548675]
[1745610604814,17.87278675,151.23,151.19,11.26548675]
[1745610605014,17.87278675,151.23,151.19,17.87388675]
[1745610606121,17.87278675,151.23,151.2,6.6082]
[1745610606322,17.87278675,151.23,151.19,11.26548675]
[1745610606620,11.26548675,151.23,151.19,11.26548675]
[1745610606918,6.6067,151.24,151.19,11.26548675]
[1745610607117,6.6067,151.24,151.21,11.26548675]
[1745610607425,6.6067,151.24,151.21,17.87328675]
[1745610607616,6.607,151.23,151.21,11.26548675]
[1745610608521,6.6067,151.24,151.21,11.26548675]
[1745610608920,6.6072,151.23,151.21,11.26548675]
[1745610609120,11.26548675,151.25,151.21,11.26548675]
[1745610609317,11.26548675,151.25,151.19,11.26548675]
[1745610609619,6.6071,151.23,151.19,11.26548675]
[1745610609920,11.26548675,151.25,151.19,11.26548675]
[1745610610119,6.6072,151.23,151.19,11.26548675]
[1745610610621,6.6072,151.23,151.2,6.608]
[1745610610823,6.6066,151.24,151.19,11.26548675]
[1745610611121,1.9331,151.26,151.21,11.26548675]
[1745610611321,1.9331,151.26,151.23,11.26548675]
[1745610611616,23.72,151.29,151.25,11.26548675]
[1745610611820,34.98548675,151.3,151.25,11.26548675]
[1745610612622,6.6055,151.27,151.25,11.26548675]
[1745610613124,34.98548675,151.3,151.25,11.26548675]
[1745610613421,11.26548675,151.28,151.24,11.26548675]
[1745610613810,11.26548675,151.26,151.22,11.26548675]
[1745610614218,1.9103,151.27,151.22,11.26548675]
[1745610614918,1.9103,151.27,151.23,6.6067]
[1745610615122,1.9103,151.27,151.22,11.26548675]
[1745610615823,6.6059,151.26,151.23,6.607]
[1745610617023,8.5157,151.27,151.24,6.6065]
[1745610617322,35.28548675,151.26,151.2,11.26548675]
[1745610617619,6.6073,151.23,151.2,17.87368675]
[1745610618020,35.28548675,151.26,151.2,11.26548675]
[1745610618519,13.17578675,151.27,151.22,11.26548675]
[1745610619327,6.606,151.26,151.23,6.6066]
[1745610619625,13.17578675,151.27,151.22,11.26548675]
[1745610620320,1.9103,151.27,151.24,11.26548675]
[1745610620625,8.5157,151.27,151.24,17.87178675]
[1745610622625,6.6057,151.26,151.24,17.87178675]
[1745610623127,8.5157,151.27,151.24,17.87178675]
[1745610623323,6.6054,151.27,151.24,11.26548675]
[1745610623827,6.6054,151.27,151.24,17.87178675]
[1745610624127,6.6049,151.28,151.24,11.26548675]
[1745610624326,6.6049,151.28,151.25,6.6058]
[1745610625129,6.6053,151.27,151.25,6.6058]
[1745610626530,24.02,151.29,151.25,6.6058]
[1745610627026,6.6049,151.28,151.25,6.6058]
[1745610627232,24.02,151.29,151.25,6.6058]
[1745610628530,6.6054,151.27,151.25,6.6058]
[1745610628730,24.02,151.29,151.24,17.87178675]
[1745610629127,11.26548675,151.28,151.22,6.6072]
[1745610629430,11.26548675,151.26,151.22,6.6072]
[1745610629731,6.6065,151.25,151.22,6.6072]
[1745610629928,11.26548675,151.26,151.21,11.26548675]
[1745610630132,24.0,151.25,151.2,11.26548675]
[1745610630432,6.6068,151.24,151.21,6.6078]
[1745610631031,24.0,151.25,151.23,6.6068]
[1745610631232,11.26548675,151.27,151.23,6.6068]
[1745610631427,6.6063,151.25,151.22,17.87268675]
[1745610631630,11.26548675,151.27,151.22,11.26548675]
[1745610632134,11.26548675,151.27,151.22,17.87288675]
[1745610632433,11.26548675,151.27,151.22,11.26548675]
[1745610632633,11.26548675,151.27,151.22,17.87268675]
[1745610633034,11.26548675,151.27,151.22,11.26548675]
[1745610633733,6.6063,151.25,151.22,17.87268675]
[1745610633933,11.26548675,151.27,151.22,11.26548675]
[1745610634137,6.6059,151.26,151.24,11.26548675]
[1745610634432,35.26548675,151.29,151.24,11.26548675]
[1745610634635,24.0,151.29,151.26,11.26548675]
[1745610635536,6.6051,151.28,151.26,11.26548675]
[1745610635736,24.0,151.29,151.26,11.26548675]
[1745610635937,35.26548675,151.29,151.24,11.26548675]
[1745610636237,6.6054,151.27,151.24,17.87178675]
[1745610637039,6.6054,151.27,151.25,6.6061]
[1745610637539,6.6054,151.27,151.24,17.87178675]
[1745610638040,6.6054,151.27,151.24,11.26548675]
[1745610638640,6.605,151.28,151.25,6.606]
[1745610638940,24.0,151.29,151.25,6.606]
[1745610639139,6.605,151.28,151.25,6.606]
[1745610640239,6.6055,151.27,151.24,17.87178675]
[1745610640441,6.6055,151.27,151.24,11.26548675]
[1745610641340,6.6055,151.27,151.26,11.26548675]
[1745610643645,6.605,151.28,151.26,11.26548675]
[1745610643845,24.0,151.29,151.26,17.87088675]
[1745610644048,24.0,151.29,151.26,11.26548675]
[1745610644946,30.6046,151.29,151.26,11.26548675]
[1745610645446,30.6046,151.29,151.26,17.87078675]
[1745610646045,6.6046,151.29,151.26,17.87098675]
[1745610647044,6.6041,151.3,151.27,6.6051]
[1745610647648,6.6044,151.29,151.27,6.6051]
[1745610647845,1.9058,151.31,151.28,11.26548675]
[1745610648050,23.92,151.35,151.3,11.26548675]
[1745610648250,6.6031,151.32,151.3,11.26548675]
[1745610648456,35.18548675,151.35,151.3,17.86898675]
[1745610648646,6.6025,151.34,151.3,11.26548675]
[1745610649051,194.3460942,151.45,151.32,11.26548675]
[1745610649256,6.5996,151.4,151.37,11.26548675]
[1745610650157,104.39845771,151.42,151.37,11.26548675]
[1745610650654,6.5999,151.4,151.37,11.26548675]
[1745610651951,93.13297096,151.42,151.37,11.26548675]
[1745610652156,93.13297096,151.42,151.39,11.26548675]
[1745610652858,99.73197096,151.42,151.39,11.26548675]
[1745610653055,93.13297096,151.42,151.39,11.26548675]
[1745610653758,68.88146972,151.41,151.39,11.26548675]
[1745610654257,62.28226972,151.41,151.39,11.26548675]
[1745610654854,62.28226972,151.41,151.4,6.5996]
[1745610656751,93.13297096,151.42,151.41,6.5991]
[1745610656954,93.13297096,151.42,151.41,17.86458675]
[1745610657159,155.4768754,151.44,151.41,11.26548675]
[1745610657359,155.4768754,151.44,151.43,17.86368675]
[1745610657558,155.4768754,151.44,151.43,11.26548675]
[1745610659159,162.0746754,151.44,151.41,23.9]
[1745610659359,155.4768754,151.44,151.41,23.9]
[1745610659551,155.4768754,151.44,151.42,11.26548675]
[1745610659756,6.5985,151.43,151.42,11.26548675]
[1745610660055,155.4768754,151.44,151.42,11.26548675]
[1745610660250,162.0749754,151.44,151.42,11.26548675]
[1745610660762,155.4768754,151.44,151.42,11.26548675]
[1745610661860,155.4768754,151.44,151.41,11.26548675]
[1745610662058,6.5987,151.42,151.41,11.26548675]
[1745610662665,166.74236215,151.44,151.39,11.26548675]
[1745610663160,6.5996,151.4,151.39,11.26548675]
[1745610664266,11.26548675,151.4,151.34,25.8869]